lending/lending_fUSD_20240130
["ID","MTS","AMOUNT","RATE_DAILY","PERIOD"]
[313018319,1706629839717,-1038.758,0.00023,2]
[313018320,1706629839727,-271.903,0.00023,2]
[313018321,1706629839736,-353.327,0.00023,2]
[313018322,1706629839745,-150.554,0.00023,2]
[313018323,1706629839754,-292.024,0.00023,2]
[313018324,1706629839764,-151.086,0.00023,2]
[313018325,1706629839773,-294.0,0.00023,2]
[313018326,1706629839782,-164.64,0.00023005,2]
[313018327,1706629839791,-8383.15,0.00023005,18]
[313018328,1706629839802,-5281.86,0.00023082,2]
[313018329,1706629839811,-1356.92054761,0.00023111,2]
[313018330,1706629839820,-3659.98935653,0.0002313,2]
[313018331,1706629839830,-4445.2492903,0.00023245,2]
[313018332,1706629839839,-65979.2074319,0.00023245,2]
[313018333,1706629839849,-1553.3510095,0.00023261,2]
[313018334,1706629839858,-863.68858697,0.00023265,2]
[313018335,1706629839867,-884.2574945,0.00023277,2]
[313018336,1706629839876,-506.11425534,0.00023277,2]
[313018337,1706629839885,-2342.1343336,0.00023277,2]
[313018338,1706629839895,-1008.82211059,0.00023341,3]
[313018339,1706629839904,-164.64,0.00023398,2]
[313018340,1706629839912,-151.2,0.00023508,2]
[313018341,1706629839921,-164.64,0.00023791,2]
[313018342,1706629839930,-201.63954653,0.00024,2]
[313018343,1706629839938,-299.999999,0.000241,2]
[313018344,1706629839946,-150.63,0.00024159,2]
[313018345,1706629839957,-167.0,0.00024297,2]
[313018346,1706629839968,-167.0,0.00024297,2]
[313018347,1706629839978,-4325.21,0.00024384,2]
[313018348,1706629839987,-325.74412425,0.0002442,2]
[313018349,1706629839997,-500.3911992,0.00024499,2]
[313018350,1706629840008,-2500.0,0.000245,2]
[313018351,1706629840018,-200.0,0.0002456,2]
[313018352,1706629840028,-250.0,0.00024658,2]
[313018353,1706629840037,-622.67,0.00024658,4]
[313018354,1706629840048,-10000.0,0.00024658,2]
[313018355,1706629840057,-840.0,0.00024836,2]
[313018357,1706629840067,-151.2,0.00024878,2]
[313018358,1706629840076,-419.9,0.00024932,2]
[313018359,1706629840086,-419.9,0.00024932,2]
[313018360,1706629840095,-191.69,0.00024932,2]
[313018361,1706629840105,-1911.06720332,0.00025,2]
[313018362,1706629840114,-202.54115654,0.00025,2]
[313018363,1706629840123,-304.2742515,0.00025,2]
[313018364,1706629840133,-167.80869471,0.00025,2]
[313018365,1706629840142,-511.56143911,0.00025,2]
[313018366,1706629840151,-208.35628047,0.00025,2]
[313018367,1706629840160,-17508.44736099,0.00025,2]
[313018368,1706629840170,-1587.92031382,0.00025,2]
[313018369,1706629840179,-935.55189282,0.00025,2]
[313018370,1706629840188,-1259.70975586,0.00025,2]
[313018371,1706629840198,-160.351288,0.00025,2]
[313018372,1706629840207,-71429.18306641,0.00025,2]
[313018373,1706629840216,-550.0,0.00025,3]
[313018374,1706629840226,-1500.0,0.00025,2]
[313018375,1706629840235,-188.53,0.00025,2]
[313018376,1706629840245,-1538.15802506,0.00025329,2]
[313018378,1706629840254,-191.74,0.00025344,2]
[313018380,1706629840264,-274.69550962,0.0002549,2]
[313018381,1706629840274,-1500.0,0.000255,2]
[313018382,1706629840283,-20421.0,0.000256,2]
[313018383,1706629840292,-207.0,0.00025632,2]
[313018384,1706629840302,-323.68150614,0.0002565,2]
[313018385,1706629840312,-201.56048703,0.00026,2]
[313018386,1706629840321,-216.756,0.00026,2]
[313018387,1706629840331,-292.939,0.00026,2]
[313018388,1706629840340,-838.0,0.00026,2]
[313018389,1706629840351,-1249.0,0.00026,2]
[313018390,1706629840362,-215.0,0.00026,2]
[313018391,1706629840371,-1233.0,0.00026,2]
[313018392,1706629840381,-1940.0,0.00026,2]
[313018393,1706629840390,-150.0,0.00026,2]
[313018394,1706629840399,-320.0,0.00026,2]
[313018395,1706629840410,-1500.0,0.00026,2]
[313018396,1706629840419,-2914.0,0.00026,2]
[313018397,1706629840429,-2280.0,0.00026,2]
[313018398,1706629840439,-150.0,0.00026,2]
[313018399,1706629840449,-150.0,0.00026079,2]
[313018400,1706629840460,-167.0,0.00026302,2]
[313018401,1706629840469,-1500.0,0.000265,2]
[313018402,1706629840479,-2925.3911565,0.000267,4]
[313018403,1706629840489,-150.0,0.00026731,2]
[313018404,1706629840500,-417.03641631,0.00027,2]
[313018405,1706629840509,-600.0,0.00027,3]
[313018406,1706629840518,-1500.0,0.00027,2]
[313018407,1706629840527,-150.63,0.00027037,2]
[313018408,1706629840536,-200.0,0.00027289,2]
[313018409,1706629840546,-231.55,0.00027397,2]
[313018410,1706629840556,-766.09,0.00027397,2]
[313018411,1706629840565,-1167.94,0.00027397,2]
[313018412,1706629840574,-904.0,0.000275,2]
[313018413,1706629840584,-1000.0,0.000275,2]
[313018414,1706629840593,-1167.94,0.00027556,2]
[313018415,1706629840777,-840.0,0.00027596,2]
[313018416,1706629840787,-766.09,0.00027686,2]
[313018417,1706629840800,-1167.94,0.00027714,2]
[313018418,1706629840809,-1538.15802506,0.00027757,3]
[313018419,1706629840818,-1167.94,0.00027872,2]
[313018420,1706629840827,-766.09,0.00027974,2]
[313018421,1706629840837,-546.59368811,0.00027999,15]
[313018422,1706629840846,-100000.0000005,0.00028,4]
[313018423,1706629840855,-1167.94,0.0002803,2]
[313018424,1706629840865,-150.63,0.00028069,2]
[313018425,1706629840875,-1167.94,0.00028189,2]
[313018426,1706629840886,-766.09,0.00028262,2]
[313018427,1706629840895,-167.0,0.00028307,2]
[313018428,1706629840905,-167.0,0.00028307,2]
[313018429,1706629840915,-1167.94,0.00028347,2]
[313018430,1706629840925,-1167.94,0.00028505,2]
[313018431,1706629840934,-766.09,0.00028551,2]
[313018432,1706629840944,-1167.94,0.00028664,2]
[313018433,1706629840955,-1167.94,0.00028822,2]
[313018434,1706629840964,-766.09,0.00028839,2]
[313018435,1706629840974,-1700.06344736,0.00029,15]
[313018436,1706629840985,-650.0,0.00029,3]
[313018437,1706629840994,-838.0,0.00029,2]
[313018438,1706629841003,-1249.0,0.00029,2]
[313018439,1706629841012,-215.0,0.00029,2]
[313018440,1706629841022,-1233.0,0.00029,2]
[313018441,1706629841031,-784.75,0.00029,2]
[313018442,1706629841041,-150.0,0.00029,2]
[313018443,1706629841052,-2741.661,0.00029,2]
[313018444,1706629841062,-2280.0,0.00029,2]
[313018445,1706629841071,-766.09,0.00029128,2]
[313018446,1706629841081,-766.09,0.00029416,2]
[313018447,1706629841090,-7225.68550063,0.00029463,14]
[313018448,1706629841099,-403.0,0.00029704,5]
[313018449,1706629841109,-766.09,0.00029704,2]
[313018450,1706629841119,-966.39934219,0.000299,2]
[313018451,1706629841128,-249.27635904,0.000299,2]
[313018452,1706629841137,-154.43794925,0.000299,2]
[313018453,1706629841147,-199.04156478,0.000299,2]
[313018454,1706629841157,-207.0,0.00029928,9]
[313018455,1706629841167,-1000.0,0.00029957,2]
[313018456,1706629841177,-1495.5335549,0.00029958,2]
[313018457,1706629841188,-3754.6723363,0.00029958,2]
[313018458,1706629841209,-17088.04485788,0.00029958,2]
[313018459,1706629841230,-38641.18172522,0.00029958,2]
[313018460,1706629841240,-850.1271365,0.00029959,2]
[313018461,1706629841251,-2251.7331963,0.00029959,2]
[313018462,1706629841261,-815.9967786,0.00029979,2]
[313018463,1706629841271,-2161.332059,0.00029979,2]
[313018464,1706629841281,-1437.7161003,0.00029979,2]
[313018465,1706629841291,-3064.0953823,0.00029979,2]
[313018467,1706629841303,-45479.2457344,0.00029979,2]
[313018469,1706629841314,-4243.88404359,0.0002998,2]
[313018471,1706629841324,-766.09,0.00029993,2]
[313018473,1706629841334,-166.76766472,0.00029997,2]
[313018475,1706629841344,-546.59368811,0.00029999,15]
[313018477,1706629841354,-315.69926305,0.00029999,15]
[313018479,1706629841364,-315.69926305,0.00029999,15]
[313018481,1706629841374,-155.0,0.0003,2]
[313018483,1706629841384,-201.57807694,0.0003,4]
[313018484,1706629841395,-99051.08353563,0.0003,2]
[313018485,1706629841408,-462.09903594,0.0003,2]
[313018486,1706629841431,-1273.19236374,0.0003,2]
[313018487,1706629841443,-4149.39999998,0.0003,2]
[313018488,1706629841478,-830.35962755,0.0003,2]
[313018489,1706629841489,-1319.04852,0.0003,2]
[313018490,1706629841501,-383.23418534,0.0003,2]
[313018491,1706629841514,-211132.27632188,0.0003,2]
[313018492,1706629841526,-332.69995427,0.0003,2]
[313018493,1706629841551,-14770.70711401,0.0003,2]
[313018494,1706629841746,-664.12836649,0.0003,2]
[313018495,1706629841758,-27032.01413099,0.0003,2]
[313018496,1706629841771,-526.42990021,0.0003,2]
[313018497,1706629841904,-221777.18842043,0.0003,2]
[313018498,1706629841914,-156.34131096,0.0003,4]
[313018499,1706629841924,-2286.05020553,0.0003,4]
[313018500,1706629841934,-2311.40710113,0.0003,4]
[313018501,1706629841943,-5849.00396766,0.0003,4]
[313018502,1706629841953,-823.45656299,0.0003,4]
[313018503,1706629841964,-1825.31985469,0.0003,4]
[313018504,1706629841975,-583.92214289,0.0003,2]
[313018505,1706629841985,-311.50520017,0.0003,2]
[313018506,1706629841994,-9650.17359953,0.0003,2]
[313018507,1706629842004,-1000.0,0.0003,2]
[313018508,1706629842014,-1578.8145431,0.0003,4]
[313018509,1706629842024,-6808.61963762,0.0003,4]
[313018510,1706629842033,-500.0,0.0003,7]
[313018511,1706629842043,-348.921761,0.0003,2]
[313018512,1706629842058,-1264.88014,0.0003,2]
[313018513,1706629842067,-1264.88014,0.0003,2]
[313018514,1706629842081,-1264.88015,0.0003,2]
[313018515,1706629842090,-1264.88015,0.0003,2]
[313018516,1706629842100,-1264.88015,0.0003,2]
[313018517,1706629842110,-1264.88014,0.0003,2]
[313018518,1706629842120,-200.0,0.00030018,2]
[313018519,1706629842130,-155.08,0.00030137,2]
[313018520,1706629842140,-1538.15802506,0.00030186,4]
[313018521,1706629842150,-766.09,0.00030281,2]
[313018522,1706629842160,-840.0,0.00030355,2]
[313018523,1706629842170,-766.09,0.00030569,2]
[313018524,1706629842180,-191.74,0.00030723,2]
[313018525,1706629842190,-150.0,0.0003073,2]
[313018526,1706629842200,-766.09,0.00030858,2]
[313018527,1706629842210,-150.0,0.00030899,2]
[313018528,1706629842219,-966.39934215,0.000309,2]
[313018529,1706629842230,-275.98623396,0.00030979,2]
[313018530,1706629842240,-907.0,0.00031,2]
[313018531,1706629842250,-700.0,0.00031,3]
[313018532,1706629842261,-500.0,0.00031,7]
[313018533,1706629842271,-766.09,0.00031146,2]
[313018534,1706629842281,-150.63,0.00031147,2]
[313018535,1706629842290,-500.0,0.0003139,2]
[313018536,1706629842303,-3493.12386197,0.0003139,4]
[313018537,1706629842312,-200.0,0.0003139,2]
[313018538,1706629842322,-5630.88659937,0.0003139,2]
[313018539,1706629842332,-2000.0,0.0003139,2]
[313018540,1706629842343,-200.0,0.0003139,2]
[313018541,1706629842352,-766.09,0.00031435,2]
[313018542,1706629842362,-185.74,0.00031644,2]
[313018543,1706629842372,-180.0,0.00031644,2]
[313018544,1706629842382,-5000.0,0.000317,2]
[313018545,1706629842391,-2000.0,0.00031704,2]
[313018546,1706629842401,-152.595732,0.00031713,2]
[313018547,1706629842414,-766.09,0.00031723,2]
[313018548,1706629842424,-546.59368811,0.00031799,15]
[313018549,1706629842435,-25770.75507204,0.000318,4]
[313018550,1706629842444,-966.39934215,0.000319,3]
[313018551,1706629842454,-150.63,0.0003198,2]
[313018552,1706629842463,-500.0,0.00032,7]
[313018553,1706629842473,-1091.235,0.00032,2]
[313018555,1706629842482,-1233.0,0.00032,2]
[313018556,1706629842492,-150.0,0.00032,2]
[313018557,1706629842501,-2135.345,0.00032,2]
[313018559,1706629842511,-766.09,0.00032011,2]
[313018561,1706629842520,-3000.0,0.000322,20]
[313018563,1706629842530,-154.43794925,0.00032215,2]
[313018565,1706629842539,-766.09,0.000323,2]
[313018567,1706629842552,-249.276359,0.00032575,4]
[313018569,1706629842561,-766.09,0.00032588,2]
[313018570,1706629842570,-1538.15802506,0.00032614,6]
[313018572,1706629842580,-200.0,0.00032747,2]
[313018573,1706629842589,-1427.21856325,0.0003278,5]
[313018574,1706629842598,-9379.47276031,0.000328,2]
[313018575,1706629842608,-766.09,0.00032877,2]
[313018576,1706629842617,-966.39934215,0.000329,4]
[313018577,1706629842627,-750.0,0.00033,3]
[313018578,1706629842636,-500.0,0.00033,7]
[313018579,1706629842646,-840.0,0.00033115,2]
[313018580,1706629842655,-966.39934215,0.000339,6]
[313018581,1706629842665,-636.15843273,0.00034,4]
[313018582,1706629842674,-500.0,0.00034,7]
[313018583,1706629842683,-207.0,0.00034224,16]
[313018585,1706629842692,-150.0,0.00034358,7]
[313018587,1706629842701,-154.43794925,0.0003453,2]
[313018588,1706629842711,-150.0,0.00034548,10]
[313018590,1706629842720,-2373.5184284,0.00034804,2]
[313018592,1706629842729,-27982.18687537,0.00034804,2]
[313018619,1706629843307,-529.73999,0.00034804,2]
[313018620,1706629843345,-422.25989968,0.00034804,2]
[313018621,1706629843356,-1015.60096379,0.00034804,2]
[313018622,1706629843372,-5279.47715676,0.00034804,2]
[313018623,1706629843382,-781.8664207,0.00034828,2]
[313018624,1706629843392,-2070.9309218,0.00034828,2]
[313018625,1706629843401,-1379.8986458,0.00034828,2]
[313018626,1706629843410,-500.0,0.000349,10]
[313018627,1706629843419,-966.39934215,0.000349,7]
[313018628,1706629843429,-1604.82139453,0.000349,2]
[313018629,1706629843437,-1121.06058606,0.000349,2]
[313018639,1706629846181,-483.76080846,0.000349,2]
[313018640,1706629846191,-1604.82139452,0.000349,2]
[313018641,1706629846201,-1604.82139452,0.000349,2]
[313018642,1706629846211,-1604.82139452,0.000349,2]
[313018643,1706629846221,-1604.82139452,0.000349,2]
[313018645,1706629846231,-1604.82139452,0.000349,2]
[313018647,1706629846241,-1604.82139452,0.000349,2]
[313018649,1706629846251,-232.04593864,0.000349,2]
[313018651,1706629846261,-199.04156477,0.000349,2]
[313018653,1706629846271,-768.40870675,0.00035,4]
[313018654,1706629846281,-1106.35932087,0.00035,14]
[313018655,1706629846291,-15743.08896824,0.00035,7]
[313018656,1706629846301,-64856.0,0.00035,2]
[313018657,1706629846313,-1500.0,0.00035,2]
[313018658,1706629846323,-1500.0,0.00035,2]
[313018659,1706629846332,-1500.0,0.00035,2]
[313018660,1706629846342,-1475.58,0.00035,2]
[313018661,1706629846353,-800.0,0.00035,3]
[313018662,1706629846362,-500.0,0.00035,7]
[313018663,1706629846372,-13808.10541862,0.00035,2]
[313018664,1706629846382,-1233.0,0.00035,2]
[313018665,1706629846392,-150.0,0.00035,2]
[313018666,1706629846402,-3000.0,0.00035,11]
[313018667,1706629846411,-3000.0,0.0003501,11]
[313018668,1706629846421,-5522.066767,0.0003502,11]
[313018669,1706629846431,-1538.15802506,0.00035043,7]
[313018670,1706629846441,-1821.55,0.00035078,5]
[313018671,1706629846451,-19171.52536403,0.0003509,2]
[313018672,1706629846460,-1801.71,0.00035128,5]
[313018673,1706629846470,-1832.57,0.0003519,5]
[313018674,1706629846479,-249.276359,0.0003525,7]
[313018675,1706629846490,-1604.82139452,0.00035532,2]
[313018676,1706629846499,-190.60286229,0.00035616,2]
[313018677,1706629846509,-657.42,0.00035616,2]
[313018678,1706629846518,-4325.21,0.00035616,2]
[313018679,1706629846528,-953.53,0.000357,7]
[313018680,1706629846537,-150.63,0.0003589,2]
[313018681,1706629846547,-966.39934215,0.000359,8]
[313018682,1706629846560,-150.1,0.000361,2]
[313018683,1706629846569,-154.44,0.000361,3]
[313018684,1706629846578,-154.44,0.000361,3]
[313018685,1706629846589,-877.0,0.000361,3]
[313018686,1706629846599,-877.0,0.000361,3]
[313018687,1706629846609,-877.0,0.000361,3]
[313018688,1706629846619,-877.0,0.000361,3]
[313018689,1706629846628,-877.0,0.000361,3]
[313018690,1706629846639,-877.0,0.000361,3]
[313018691,1706629846649,-877.0,0.000361,3]
[313018692,1706629846658,-877.0,0.000361,3]
[313018693,1706629846668,-877.0,0.000361,3]
[313018694,1706629846677,-877.0,0.000361,3]
[313018695,1706629846687,-877.0,0.000361,3]
[313018696,1706629846696,-877.0,0.000361,3]
[313018697,1706629846705,-877.0,0.000361,3]
[313018698,1706629846715,-877.0,0.000361,3]
[313018699,1706629846724,-877.0,0.000361,3]
[313018700,1706629846735,-877.0,0.000361,3]
[313018701,1706629846744,-877.0,0.000361,3]
[313018702,1706629846756,-877.0,0.000361,3]
[313018703,1706629846766,-877.0,0.000361,3]
[313018704,1706629846776,-877.0,0.000361,3]
[313018705,1706629846785,-157.92825474,0.0003649,10]
[313018706,1706629846795,-154.43794925,0.00036845,2]
[313018707,1706629846806,-966.39934215,0.000369,9]
[313018708,1706629846815,-657.42,0.00036934,2]
[313018709,1706629846826,-8000.0,0.00037,7]
[313018710,1706629846837,-850.0,0.00037,3]
[313018711,1706629846847,-1604.82139452,0.00037111,2]
[313018712,1706629846857,-547.56535636,0.000374,2]
[313018713,1706629846867,-315.69926305,0.0003747,30]
[313018714,1706629846877,-1538.15802506,0.00037471,8]
[313018715,1706629846887,-1786.29,0.00037663,5]
[313018716,1706629846896,-953.53,0.000377,7]
[313018717,1706629846906,-747.7360627,0.00037874,2]
[313018718,1706629846916,-713.6057048,0.00037874,2]
[313018719,1706629846926,-1980.5297845,0.00037874,2]
[313018720,1706629846937,-1890.1286472,0.00037874,2]
[313018721,1706629846947,-1322.0811912,0.00037874,2]
[313018722,1706629846957,-1264.2637366,0.00037874,2]
[313018723,1706629846967,-1682.9414744,0.00037874,2]
[313018724,1706629846983,-992.3645204,0.00037874,2]
[313018725,1706629846992,-24979.2840369,0.00037874,2]
[313018726,1706629847002,-14729.3031881,0.00037874,2]
[313018727,1706629847012,-80471.66357722,0.0003788,2]
[313018728,1706629847022,-256.84052842,0.0003788,2]
[313018729,1706629847033,-194.23061134,0.0003788,2]
[313018730,1706629847043,-203.19637933,0.0003789,7]
[313018731,1706629847054,-166.76766472,0.00037897,2]
[313018732,1706629847064,-546.59368816,0.00037899,30]
[313018733,1706629847074,-315.69926305,0.00037899,30]
[313018734,1706629847083,-966.39934215,0.000379,11]
[313018735,1706629847093,-231749.88510087,0.000379,3]
[313018736,1706629847106,-527.84998398,0.000379,3]
[313018737,1706629847118,-1161.65000001,0.000379,3]
[313018738,1706629847152,-2090.76825134,0.000379,3]
[313018739,1706629847164,-1232.59825842,0.000379,3]
[313018740,1706629847181,-414.5,0.000379,3]
[313018741,1706629847227,-2511.59289321,0.000379,3]
[313018745,1706630410148,480.68451684,0.00020379,2]
[313018755,1706630835365,-166.10998809,0.00022599,2]
[313018756,1706630835385,-240.36283375,0.00022668,2]
[313018757,1706630835404,-265.21514483,0.00022669,2]
[313018784,1706631032363,-240.36283375,0.00022541,2]
[313018787,1706631032373,-626.09716625,0.00022542,2]
[313018789,1706631032384,-864.68441708,0.00022542,2]
[313018793,1706631032416,-255.4812832,0.00022542,2]
[313018851,1706631038003,-595.30506348,0.00022542,2]
[313018854,1706631038015,-402.43206999,0.00022542,2]
[313018856,1706631038024,-406.31823778,0.00022669,5]
[313018858,1706631038036,-741.27723955,0.00022669,5]
[313018860,1706631038047,-132.51953393,0.00022669,5]
[313018862,1706631038056,-230.26985947,0.00022669,2]
[313018864,1706631038066,-58.0994415,0.00022698,2]
[313018871,1706631038126,-91.9005585,0.00022698,2]
[313018873,1706631038135,-1121.77765642,0.00022699,2]
[313018875,1706631038148,-276.2899896,0.00022699,2]
[313018924,1706631040375,-2347.58580015,0.00022699,2]
[313018925,1706631041225,-479.7780696,0.00022699,2]
[313018973,1706631043017,-1275.57228423,0.00022699,2]
[313018974,1706631043027,-490.2424,0.00022699,2]
[313018975,1706631043037,-66755.3227,0.00022699,2]
[313018976,1706631043046,-166.10998807,0.0002275,2]
[313018977,1706631043055,-3485.7256,0.000228,2]
[313018978,1706631043064,-671.6799,0.000228,2]
[313018979,1706631043074,-100000.0,0.000229,2]
[313018980,1706631043083,-805.94424232,0.000229,2]
[313018981,1706631043093,-166.18423934,0.000229,2]
[313018982,1706631043103,-5000.0,0.000229,2]
[313018983,1706631043111,-166.10998807,0.000229,2]
[313018984,1706631043121,-232.04593864,0.000229,2]
[313018985,1706631043144,-1277.59440242,0.000229,2]
[313018986,1706631043154,-248.05836872,0.000229,6]
[313018987,1706631043164,-154.43794925,0.000229,2]
[313018988,1706631043174,-399.33874711,0.000229,2]
[313018989,1706631043183,-365.04357092,0.000229,2]
[313018990,1706631043193,-155.1631292,0.00022999,2]
[313018991,1706631043203,-2340.3495,0.00022999,2]
[313018992,1706631043213,-500.0,0.00022999,2]
[313018993,1706631043223,-500.0,0.00022999,2]
[313018994,1706631043233,-589.80507991,0.00022999,2]
[313018995,1706631043246,-422.51770321,0.00022999,2]
[313018996,1706631043256,-362.40271201,0.00022999,2]
[313018997,1706631043266,-218.10807329,0.00022999,2]
[313018998,1706631043276,-245.91928786,0.00022999,2]
[313018999,1706631043285,-500.0,0.00022999,2]
[313019001,1706631043295,-500.0,0.00022999,2]
[313019003,1706631043306,-526.0450219,0.00022999,2]
[313019005,1706631043315,-307.76060284,0.00022999,2]
[313019006,1706631043325,-500.0,0.00022999,2]
[313019007,1706631043337,-308348.32198778,0.00023,2]
[313019010,1706631043372,-296.375,0.00023,2]
[313019013,1706631043387,-276.60054437,0.00023,2]
[313019015,1706631043398,-3454.32107283,0.00023,2]
[313019017,1706631043424,-5303.78486467,0.00023,2]
[313019025,1706631046689,-654.66983329,0.00023,2]
[313019027,1706631046702,-424.4005223,0.00023,2]
[313019029,1706631046713,-4137.63245983,0.00023,2]
[313019034,1706631046769,-4195.5300498,0.00023,2]
[313019036,1706631046780,-729.0,0.00023,2]
[313019040,1706631046818,-809.08477769,0.00023,2]
[313019041,1706631046829,-261.11913938,0.00023,2]
[313019042,1706631046840,-285.975,0.00023,2]
[313019043,1706631046880,-559.3,0.00023,2]
[313019044,1706631046896,-955.30400023,0.00023,2]
[313019045,1706631046946,-442.00189353,0.00023,2]
[313019046,1706631046958,-374.19152097,0.00023,2]
[313019047,1706631046969,-452.73228,0.00023,2]
[313019055,1706631131282,150.0,0.00022,2]
[313019057,1706631246520,191150.0,0.00022317,2]
[313019060,1706631465193,168.49,0.00027484,120]
[313019068,1706631808838,152.4,0.00020886,2]
[313019070,1706631884917,2852.6,0.00020886,2]
[313019071,1706631884942,14512.15648487,0.00020886,2]
[313019072,1706631902901,19005.22648487,0.00020886,2]
[313019073,1706631928913,19005.22648487,0.00020886,2]
[313019074,1706631944914,9343.8915411,0.00020886,2]
[313019077,1706632031098,-240.36283375,0.00022606,2]
[313019078,1706632031120,-443.12357996,0.00022607,2]
[313019079,1706632146194,-526.41523693,0.00022585,2]
[313019080,1706632146215,-73.58476307,0.00022586,2]
[313019081,1706632182953,1508.93149553,0.00022471,2]
[313019082,1706632231696,152.4,0.00020611,2]
[313019090,1706632232281,-190.55,0.00022529,2]
[313019091,1706632232293,-250.0,0.00022547,2]
[313019092,1706632232305,-6454.84005374,0.00022583,2]
[313019093,1706632232316,-33841.23794018,0.00022583,2]
[313019094,1706632232328,-150.0,0.00022584,2]
[313019095,1706632232340,-7803.03250074,0.00022584,2]
[313019096,1706632232351,-300.0,0.00022584,2]
[313019097,1706632232363,-13044.44028321,0.00022585,2]
[313019098,1706632232375,-556.87642004,0.00022607,2]
[313019100,1706632232387,-200.0,0.0002266,2]
[313019102,1706632232400,-500.0,0.00022816,2]
[313019105,1706632232411,-726.62,0.00022898,2]
[313019107,1706632232422,-724.87,0.00022898,2]
[313019109,1706632232431,-738.34,0.00022899,2]
[313019111,1706632232441,-150.99,0.00022899,2]
[313019113,1706632232450,-633.57,0.00022899,2]
[313019115,1706632232459,-2080.3,0.00022899,2]
[313019117,1706632232467,-499.99,0.00022899,2]
[313019119,1706632232476,-603.1,0.00022899,2]
[313019121,1706632232485,-710.17,0.00022899,2]
[313019123,1706632232495,-721.85,0.00022899,2]
[313019125,1706632232504,-728.68,0.000229,2]
[313019127,1706632232513,-723.44,0.000229,2]
[313019129,1706632232522,-7994.4942,0.000229,2]
[313019131,1706632232532,-738.7822222,0.000229,2]
[313019133,1706632232541,-166.18423933,0.000229,2]
[313019135,1706632232550,-153.97402135,0.000229,2]
[313019137,1706632232559,-171.496,0.000229,2]
[313019139,1706632232568,-5000.0,0.000229,2]
[313019171,1706632232870,-243.3623806,0.000229,2]
[313019172,1706632232898,-966.48247679,0.000229,2]
[313019173,1706632232918,-246.63607777,0.00022982,6]
[313019174,1706632232928,-7513.35583929,0.00022988,2]
[313019175,1706632232937,-1115.94374019,0.00022998,2]
[313019177,1706632232947,-583.54439267,0.00022998,2]
[313019179,1706632232957,-332.84281867,0.00022998,2]
[313019182,1706632232967,-708.49547189,0.00022998,2]
[313019183,1706632232977,-683.48003275,0.00022998,2]
[313019186,1706632232987,-239.95844186,0.00022998,2]
[313019188,1706632232997,-599.27979208,0.00022998,2]
[313019190,1706632233006,-528.30129594,0.00022998,2]
[313019192,1706632233015,-715.38,0.00022998,2]
[313019194,1706632233024,-728.36,0.00022998,2]
[313019196,1706632233033,-585.6112644,0.00022999,2]
[313019197,1706632233042,-1000.0,0.00022999,2]
[313019199,1706632233051,-392.6640714,0.00022999,10]
[313019202,1706632233061,-392.6640714,0.00022999,10]
[313019204,1706632233070,-392.66407141,0.00022999,10]
[313019205,1706632233079,-119485.58379023,0.00023,2]
[313019208,1706632233091,-9619.06247159,0.00023,2]
[313019254,1706632238733,-3058.75871655,0.00023,2]
[313019255,1706632238773,-461.175,0.00023,2]
[313019256,1706632238786,-738.21863589,0.00023,2]
[313019257,1706632238798,-662.89522243,0.00023,2]
[313019258,1706632238884,-1820.25942293,0.00023,2]
[313019259,1706632239048,-656.04950956,0.00023,2]
[313019267,1706632240652,-947.0,0.00023,2]